[Event "*** Titled Tuesday Blitz"]
[Site "Chess.com"]
[Date "2019.05.07"]
[Round "10"]
[White "SoltaniciR"]
[Black "2165149677570"]
[Result "1-0"]
[WhiteElo "2506"]
[BlackElo "2332"]
[TimeControl "180+2"]
[EndTime "15:25:36 PDT"]
[Termination "SoltaniciR won by checkmate"]

1. e4 {[%clk 0:02:57.6]} 1... c5 {[%clk 0:02:59]} 2. Nf3 {[%clk 0:02:58.1]} 2...
Nc6 {[%clk 0:02:56.3]} 3. Bb5 {[%clk 0:02:57.8]} 3... d6 {[%clk 0:02:57.1]} 4.
O-O {[%clk 0:02:58.1]} 4... Bd7 {[%clk 0:02:57.7]} 5. Re1 {[%clk 0:02:56.7]}
5... Nf6 {[%clk 0:02:57.7]} 6. c3 {[%clk 0:02:52.7]} 6... a6 {[%clk 0:02:58.9]}
7. Bf1 {[%clk 0:02:51.7]} 7... Bg4 {[%clk 0:03:00]} 8. h3 {[%clk 0:02:49.7]}
8... Bxf3 {[%clk 0:03:00.7]} 9. Qxf3 {[%clk 0:02:50.7]} 9... e6 {[%clk
0:03:02.4]} 10. d3 {[%clk 0:02:50.9]} 10... Be7 {[%clk 0:03:02.5]} 11. Be3
{[%clk 0:02:50.7]} 11... d5 {[%clk 0:03:03.8]} 12. Nd2 {[%clk 0:02:42]} 12... d4
{[%clk 0:03:00.7]} 13. Bf4 {[%clk 0:02:37.9]} 13... e5 {[%clk 0:02:55.1]} 14.
Bg3 {[%clk 0:02:32.1]} 14... dxc3 {[%clk 0:02:55.4]} 15. bxc3 {[%clk 0:02:31.8]}
15... b5 {[%clk 0:02:57]} 16. Qd1 {[%clk 0:02:17.4]} 16... O-O {[%clk
0:02:54.7]} 17. Nf3 {[%clk 0:02:17.4]} 17... Nd7 {[%clk 0:02:45.8]} 18. d4
{[%clk 0:02:17.4]} 18... cxd4 {[%clk 0:02:42.5]} 19. cxd4 {[%clk 0:02:18.3]}
19... exd4 {[%clk 0:02:24.3]} 20. Nxd4 {[%clk 0:02:18.7]} 20... Nxd4 {[%clk
0:02:23.8]} 21. Qxd4 {[%clk 0:02:19.9]} 21... Nc5 {[%clk 0:02:06.2]} 22. Rad1
{[%clk 0:02:09.4]} 22... Qxd4 {[%clk 0:01:58.7]} 23. Rxd4 {[%clk 0:02:10]} 23...
Ne6 {[%clk 0:02:00.6]} 24. Rd5 {[%clk 0:02:07.4]} 24... Rfc8 {[%clk 0:01:58]}
25. f4 {[%clk 0:02:06]} 25... Rc2 {[%clk 0:01:49.7]} 26. Re2 {[%clk 0:02:03.8]}
26... Bc5+ {[%clk 0:01:51]} 27. Kh2 {[%clk 0:02:03.3]} 27... Rc4 {[%clk
0:01:47.1]} 28. f5 {[%clk 0:01:53.7]} 28... Nd4 {[%clk 0:01:48.3]} 29. Rd2
{[%clk 0:01:54.6]} 29... Rc1 {[%clk 0:01:48.8]} 30. Rxc5 {[%clk 0:01:46.8]}
30... Rxc5 {[%clk 0:01:49.5]} 31. Rxd4 {[%clk 0:01:47.3]} 31... Rc2 {[%clk
0:01:51.1]} 32. a4 {[%clk 0:01:42]} 32... Rc1 {[%clk 0:01:35.9]} 33. Be2 {[%clk
0:01:38.6]} 33... Rc2 {[%clk 0:01:24.7]} 34. Bd3 {[%clk 0:01:32.8]} 34... Rd2
{[%clk 0:01:20.8]} 35. Bf4 {[%clk 0:01:33.8]} 35... Rd1 {[%clk 0:01:21.8]} 36.
axb5 {[%clk 0:01:32]} 36... axb5 {[%clk 0:01:21.3]} 37. e5 {[%clk 0:01:33.2]}
37... b4 {[%clk 0:01:20.1]} 38. e6 {[%clk 0:01:30.5]} 38... fxe6 {[%clk
0:00:43.3]} 39. fxe6 {[%clk 0:01:32.4]} 39... b3 {[%clk 0:00:42.5]} 40. Bxh7+
{[%clk 0:01:33.1]} 40... Kxh7 {[%clk 0:00:42]} 41. Rxd1 {[%clk 0:01:33.4]} 41...
Re8 {[%clk 0:00:43.2]} 42. Re1 {[%clk 0:01:31.2]} 42... b2 {[%clk 0:00:43.6]}
43. Rb1 {[%clk 0:01:22.9]} 43... Rxe6 {[%clk 0:00:44.5]} 44. Rxb2 {[%clk
0:01:24]} 44... Re4 {[%clk 0:00:43.8]} 45. Kg3 {[%clk 0:01:23.5]} 45... Re6
{[%clk 0:00:41.8]} 46. Kf3 {[%clk 0:01:24.2]} 46... Rf6 {[%clk 0:00:42.1]} 47.
h4 {[%clk 0:01:24.2]} 47... Ra6 {[%clk 0:00:42.6]} 48. g3 {[%clk 0:01:23.8]}
48... Rc6 {[%clk 0:00:42.3]} 49. Rb7 {[%clk 0:01:23.3]} 49... Re6 {[%clk
0:00:42.4]} 50. Kg4 {[%clk 0:01:21.6]} 50... Rg6+ {[%clk 0:00:43.3]} 51. Kf5
{[%clk 0:01:21.9]} 51... Rf6+ {[%clk 0:00:44.7]} 52. Ke5 {[%clk 0:01:21.1]}
52... Kg6 {[%clk 0:00:44.5]} 53. h5+ {[%clk 0:01:18.4]} 53... Kxh5 {[%clk
0:00:33.5]} 54. Rxg7 {[%clk 0:01:18.1]} 54... Rf5+ {[%clk 0:00:20]} 55. Ke4
{[%clk 0:01:17.4]} 55... Ra5 {[%clk 0:00:07.9]} 56. Rh7+ {[%clk 0:01:14.7]}
56... Kg6 {[%clk 0:00:09.1]} 57. Rh6+ {[%clk 0:01:15]} 57... Kg7 {[%clk
0:00:10.8]} 58. Rd6 {[%clk 0:01:14.7]} 58... Ra4+ {[%clk 0:00:10.9]} 59. Kf5
{[%clk 0:01:15.1]} 59... Ra2 {[%clk 0:00:12.8]} 60. g4 {[%clk 0:01:15.4]} 60...
Ra5+ {[%clk 0:00:13.9]} 61. Be5+ {[%clk 0:01:15.9]} 61... Kg8 {[%clk 0:00:15.6]}
62. g5 {[%clk 0:01:16.8]} 62... Ra2 {[%clk 0:00:15.6]} 63. Rd8+ {[%clk
0:01:13.8]} 63... Kf7 {[%clk 0:00:13.9]} 64. g6+ {[%clk 0:01:14.5]} 64... Ke7
{[%clk 0:00:15.4]} 65. Bf6# {[%clk 0:01:15.5]} 1-0

[Event "*** Titled Tuesday Blitz"]
[Site "Chess.com"]
[Date "2019.05.07"]
[Round "10"]
[White "checkmatequen"]
[Black "FedaMaster"]
[Result "0-1"]
[WhiteElo "2225"]
[BlackElo "2342"]
[TimeControl "180+2"]
[EndTime "15:25:39 PDT"]
[Termination "FedaMaster won by checkmate"]

1. e4 {[%clk 0:03:01.9]} 1... d5 {[%clk 0:03:00.6]} 2. exd5 {[%clk 0:03:02.4]}
2... Qxd5 {[%clk 0:03:02.5]} 3. Nc3 {[%clk 0:03:02.9]} 3... Qd6 {[%clk 0:03:04]}
4. d4 {[%clk 0:03:03.7]} 4... Nf6 {[%clk 0:03:05.3]} 5. Bd3 {[%clk 0:02:56.6]}
5... a6 {[%clk 0:02:57.6]} 6. Nge2 {[%clk 0:02:56]} 6... Nc6 {[%clk 0:02:46.3]}
7. Bf4 {[%clk 0:02:53.3]} 7... Qd8 {[%clk 0:02:38.9]} 8. O-O {[%clk 0:02:43.7]}
8... Bg4 {[%clk 0:02:36.4]} 9. f3 {[%clk 0:02:39.9]} 9... Bh5 {[%clk 0:02:37.1]}
10. Ne4 {[%clk 0:02:33.4]} 10... Nd5 {[%clk 0:02:27.9]} 11. c3 {[%clk
0:02:21.6]} 11... e6 {[%clk 0:02:16.2]} 12. Qd2 {[%clk 0:02:18.2]} 12... Be7
{[%clk 0:02:05.7]} 13. b4 {[%clk 0:02:05.3]} 13... O-O {[%clk 0:01:50]} 14. a4
{[%clk 0:02:06]} 14... Bg6 {[%clk 0:01:32.1]} 15. b5 {[%clk 0:02:02.7]} 15...
Nxf4 {[%clk 0:01:18.7]} 16. Nxf4 {[%clk 0:02:01.8]} 16... axb5 {[%clk
0:01:14.7]} 17. axb5 {[%clk 0:02:03.7]} 17... Na5 {[%clk 0:01:15.6]} 18. Nxg6
{[%clk 0:01:51.8]} 18... hxg6 {[%clk 0:01:16.5]} 19. Qc2 {[%clk 0:01:39.4]}
19... b6 {[%clk 0:01:17.6]} 20. Rfd1 {[%clk 0:01:34.3]} 20... Qd5 {[%clk
0:01:16.9]} 21. Nf2 {[%clk 0:01:27.2]} 21... Rad8 {[%clk 0:01:14.9]} 22. Be4
{[%clk 0:01:24.9]} 22... Qxb5 {[%clk 0:01:13.5]} 23. Rdb1 {[%clk 0:01:24.6]}
23... Qg5 {[%clk 0:01:06.5]} 24. Nh3 {[%clk 0:01:17.7]} 24... Qe3+ {[%clk
0:01:07.1]} 25. Kh1 {[%clk 0:01:16.9]} 25... Bd6 {[%clk 0:00:54.2]} 26. Re1
{[%clk 0:01:16.4]} 26... Qh6 {[%clk 0:00:53.5]} 27. c4 {[%clk 0:01:12.3]} 27...
c5 {[%clk 0:00:47.7]} 28. d5 {[%clk 0:01:11.1]} 28... e5 {[%clk 0:00:45.9]} 29.
Bd3 {[%clk 0:01:06.4]} 29... f5 {[%clk 0:00:40.5]} 30. Reb1 {[%clk 0:01:06.7]}
30... Bc7 {[%clk 0:00:29.4]} 31. Be2 {[%clk 0:00:57.6]} 31... g5 {[%clk
0:00:24.5]} 32. Bd3 {[%clk 0:00:42.2]} 32... e4 {[%clk 0:00:23.6]} 33. fxe4
{[%clk 0:00:39.3]} 33... g4 {[%clk 0:00:24.9]} 34. exf5 {[%clk 0:00:35]} 34...
gxh3 {[%clk 0:00:25.4]} 35. g3 {[%clk 0:00:35.8]} 35... Qe3 {[%clk 0:00:22.3]}
36. Re1 {[%clk 0:00:29.3]} 36... Qf3+ {[%clk 0:00:22.5]} 37. Kg1 {[%clk
0:00:30.6]} 37... Rde8 {[%clk 0:00:20.6]} 38. Be4 {[%clk 0:00:30.6]} 38... Qg4
{[%clk 0:00:19.7]} 39. Qd3 {[%clk 0:00:26.9]} 39... Be5 {[%clk 0:00:20.6]} 40.
Rab1 {[%clk 0:00:26.5]} 40... Bd4+ {[%clk 0:00:21.8]} 41. Kh1 {[%clk 0:00:27.7]}
41... Re5 {[%clk 0:00:21.6]} 42. Rxb6 {[%clk 0:00:26.7]} 42... Rfe8 {[%clk
0:00:23]} 43. Rg6 {[%clk 0:00:27.3]} 43... Rxe4 {[%clk 0:00:20]} 44. Rxe4 {[%clk
0:00:20]} 44... Qxe4+ {[%clk 0:00:19.5]} 45. Qxe4 {[%clk 0:00:19.8]} 45... Rxe4
{[%clk 0:00:21.4]} 46. Re6 {[%clk 0:00:18.2]} 46... Rxe6 {[%clk 0:00:21.3]} 47.
fxe6 {[%clk 0:00:20]} 47... Nxc4 {[%clk 0:00:21.9]} 48. d6 {[%clk 0:00:19.2]}
48... Nxd6 {[%clk 0:00:23.3]} 49. g4 {[%clk 0:00:20.4]} 49... Kf8 {[%clk
0:00:24.6]} 50. g5 {[%clk 0:00:21.7]} 50... Ke7 {[%clk 0:00:26.5]} 51. g6 {[%clk
0:00:23]} 51... Be5 {[%clk 0:00:26.7]} 52. Kg1 {[%clk 0:00:23.6]} 52... Kxe6
{[%clk 0:00:27.9]} 53. Kh1 {[%clk 0:00:24.9]} 53... Ne4 {[%clk 0:00:28.6]} 54.
Kg1 {[%clk 0:00:26.6]} 54... Kf5 {[%clk 0:00:28.8]} 55. Kh1 {[%clk 0:00:28.5]}
55... Kxg6 {[%clk 0:00:30]} 56. Kg1 {[%clk 0:00:30.3]} 56... c4 {[%clk
0:00:31.2]} 57. Kh1 {[%clk 0:00:32.2]} 57... c3 {[%clk 0:00:32.7]} 58. Kg1
{[%clk 0:00:34.1]} 58... c2 {[%clk 0:00:34.2]} 59. Kf1 {[%clk 0:00:36]} 59...
c1=Q+ {[%clk 0:00:35.7]} 60. Ke2 {[%clk 0:00:37.9]} 60... Qd2+ {[%clk
0:00:36.7]} 61. Kf3 {[%clk 0:00:39.7]} 61... Ng5+ {[%clk 0:00:37.9]} 62. Kg4
{[%clk 0:00:40.7]} 62... Qf4# {[%clk 0:00:38.9]} 0-1

[Event "*** Titled Tuesday Blitz"]
[Site "Chess.com"]
[Date "2019.05.07"]
[Round "10"]
[White "platy3"]
[Black "Firouzja2003"]
[Result "1-0"]
[WhiteElo "2811"]
[BlackElo "3047"]
[TimeControl "180+2"]
[EndTime "15:25:44 PDT"]
[Termination "platy3 won by resignation"]

1. e4 {[%clk 0:03:01.6]} 1... e6 {[%clk 0:02:58.4]} 2. d4 {[%clk 0:03:02.1]}
2... d5 {[%clk 0:03:00]} 3. Nd2 {[%clk 0:03:03.2]} 3... Be7 {[%clk 0:03:00.2]}
4. Ngf3 {[%clk 0:03:01.2]} 4... Nf6 {[%clk 0:03:00.2]} 5. Bd3 {[%clk 0:03:02.2]}
5... c5 {[%clk 0:03:00.9]} 6. dxc5 {[%clk 0:02:58.2]} 6... Nbd7 {[%clk
0:02:37.8]} 7. b4 {[%clk 0:02:51.6]} 7... a5 {[%clk 0:02:23.9]} 8. c3 {[%clk
0:02:52.4]} 8... O-O {[%clk 0:02:24.5]} 9. O-O {[%clk 0:02:50.4]} 9... Qc7
{[%clk 0:02:25.7]} 10. Qc2 {[%clk 0:02:42.3]} 10... h6 {[%clk 0:02:18.4]} 11.
Nb3 {[%clk 0:02:09.5]} 11... dxe4 {[%clk 0:01:39.6]} 12. Bxe4 {[%clk 0:02:10.4]}
12... Nxe4 {[%clk 0:01:41.5]} 13. Qxe4 {[%clk 0:02:11.6]} 13... Nf6 {[%clk
0:01:42.5]} 14. Qe5 {[%clk 0:01:56.3]} 14... Qxe5 {[%clk 0:01:43.3]} 15. Nxe5
{[%clk 0:01:57.2]} 15... Nd5 {[%clk 0:01:45.2]} 16. Bd2 {[%clk 0:01:55]} 16...
Bf6 {[%clk 0:01:39.4]} 17. Rfe1 {[%clk 0:01:55.7]} 17... axb4 {[%clk 0:01:31.9]}
18. cxb4 {[%clk 0:01:56.8]} 18... Ra4 {[%clk 0:01:29.1]} 19. a3 {[%clk
0:01:51.4]} 19... Nc7 {[%clk 0:01:25.1]} 20. Ra2 {[%clk 0:01:47.9]} 20... Bxe5
{[%clk 0:01:23.2]} 21. Rxe5 {[%clk 0:01:47.8]} 21... f6 {[%clk 0:01:22.4]} 22.
Re1 {[%clk 0:01:45.6]} 22... e5 {[%clk 0:01:23.7]} 23. Na5 {[%clk 0:01:43.2]}
23... Nb5 {[%clk 0:01:24.3]} 24. f4 {[%clk 0:01:36.3]} 24... Be6 {[%clk
0:01:13.7]} 25. Raa1 {[%clk 0:01:24]} 25... Rd8 {[%clk 0:00:59.5]} 26. Bc1
{[%clk 0:01:24.3]} 26... Nd4 {[%clk 0:01:00.4]} 27. Bb2 {[%clk 0:01:11.2]} 27...
Nc2 {[%clk 0:00:39.9]} 28. Rad1 {[%clk 0:01:11.6]} 28... Rb8 {[%clk 0:00:33.1]}
29. fxe5 {[%clk 0:01:09.5]} 29... Nxe1 {[%clk 0:00:34.2]} 30. Rxe1 {[%clk
0:01:05.9]} 30... f5 {[%clk 0:00:17.1]} 31. Rd1 {[%clk 0:01:07.1]} 31... b6
{[%clk 0:00:05.9]} 32. Nc6 {[%clk 0:01:07.3]} 32... Rb7 {[%clk 0:00:07.1]} 33.
Nd8 {[%clk 0:01:02]} 33... Re7 {[%clk 0:00:08.1]} 34. cxb6 {[%clk 0:00:56.2]}
34... Ra8 {[%clk 0:00:09.6]} 35. Rd6 {[%clk 0:00:50.6]} 35... Bb3 {[%clk
0:00:07.7]} 36. Nc6 {[%clk 0:00:42.5]} 36... Ree8 {[%clk 0:00:02.3]} 37. b7
{[%clk 0:00:41.3]} 37... Rab8 {[%clk 0:00:03.3]} 38. Nxb8 {[%clk 0:00:41.5]}
38... Rxb8 {[%clk 0:00:05.2]} 39. Rd7 {[%clk 0:00:39.9]} 39... Be6 {[%clk
0:00:06.5]} 40. Rc7 {[%clk 0:00:39.6]} 40... Kh7 {[%clk 0:00:07.3]} 41. Bd4
{[%clk 0:00:38.5]} 41... Bd5 {[%clk 0:00:07.5]} 42. e6 {[%clk 0:00:28.5]} 42...
Rxb7 {[%clk 0:00:08.7]} 43. Rd7 {[%clk 0:00:28.1]} 43... Bc6 {[%clk 0:00:07.6]}
44. Rxb7 {[%clk 0:00:28]} 44... Bxb7 {[%clk 0:00:09.5]} 45. b5 {[%clk
0:00:27.2]} 45... Kg6 {[%clk 0:00:10.7]} 46. a4 {[%clk 0:00:23.5]} 46... Bc8
{[%clk 0:00:12.3]} 47. b6 {[%clk 0:00:21.1]} 47... Ba6 {[%clk 0:00:06.5]} 48. g3
{[%clk 0:00:18.5]} 48... Bc8 {[%clk 0:00:03.8]} 1-0

[Event "*** Titled Tuesday Blitz"]
[Site "Chess.com"]
[Date "2019.05.07"]
[Round "10"]
[White "AliKa2810"]
[Black "blitzking1729"]
[Result "1-0"]
[WhiteElo "2500"]
[BlackElo "2482"]
[TimeControl "180+2"]
[EndTime "15:25:45 PDT"]
[Termination "AliKa2810 won by checkmate"]

1. e4 {[%clk 0:03:01.9]} 1... e6 {[%clk 0:03:00.7]} 2. d4 {[%clk 0:03:02.5]}
2... d5 {[%clk 0:03:00.6]} 3. Nd2 {[%clk 0:03:03.6]} 3... Nf6 {[%clk 0:03:00.6]}
4. e5 {[%clk 0:03:04.3]} 4... Nfd7 {[%clk 0:03:01.6]} 5. c3 {[%clk 0:03:05.6]}
5... c5 {[%clk 0:03:02]} 6. Bd3 {[%clk 0:03:07.2]} 6... Nc6 {[%clk 0:03:02.9]}
7. Ne2 {[%clk 0:03:07.8]} 7... Qb6 {[%clk 0:03:03.7]} 8. Nf3 {[%clk 0:03:08.2]}
8... cxd4 {[%clk 0:03:04.6]} 9. cxd4 {[%clk 0:03:09.4]} 9... f6 {[%clk
0:03:05.9]} 10. exf6 {[%clk 0:03:09.9]} 10... Nxf6 {[%clk 0:03:06.4]} 11. O-O
{[%clk 0:03:11.5]} 11... Bd6 {[%clk 0:03:07.2]} 12. a3 {[%clk 0:03:03.9]} 12...
O-O {[%clk 0:03:06.3]} 13. b4 {[%clk 0:03:04]} 13... a6 {[%clk 0:03:06.4]} 14.
Bf4 {[%clk 0:03:04.6]} 14... Bxf4 {[%clk 0:03:03.2]} 15. Nxf4 {[%clk 0:03:05]}
15... Kh8 {[%clk 0:03:02.8]} 16. Re1 {[%clk 0:02:57.6]} 16... Nxd4 {[%clk
0:02:59.8]} 17. Ne5 {[%clk 0:02:55.3]} 17... Kg8 {[%clk 0:02:42.3]} 18. Rc1
{[%clk 0:02:49.9]} 18... Nf5 {[%clk 0:02:29.7]} 19. Bxf5 {[%clk 0:02:43.3]}
19... exf5 {[%clk 0:02:28.4]} 20. Nxd5 {[%clk 0:02:44.8]} 20... Nxd5 {[%clk
0:02:29.2]} 21. Qxd5+ {[%clk 0:02:45.6]} 21... Be6 {[%clk 0:02:29.5]} 22. Nd7
{[%clk 0:02:30.2]} 22... Bxd5 {[%clk 0:02:27.1]} 23. Nxb6 {[%clk 0:02:31.7]}
23... Rad8 {[%clk 0:02:26.6]} 24. Nxd5 {[%clk 0:02:32.8]} 24... Rxd5 {[%clk
0:02:27.1]} 25. Rc7 {[%clk 0:02:34.4]} 25... Rfd8 {[%clk 0:02:27.7]} 26. Rxb7
{[%clk 0:02:33.5]} 26... Re5 {[%clk 0:02:23.2]} 27. Kf1 {[%clk 0:02:33.1]} 27...
Rxe1+ {[%clk 0:02:17]} 28. Kxe1 {[%clk 0:02:33.9]} 28... Rd3 {[%clk 0:02:17.8]}
29. a4 {[%clk 0:02:33.2]} 29... Ra3 {[%clk 0:02:16.7]} 30. a5 {[%clk 0:02:31]}
30... Ra2 {[%clk 0:02:06.8]} 31. Rb6 {[%clk 0:02:22.8]} 31... Rb2 {[%clk
0:02:06.4]} 32. g3 {[%clk 0:02:17.1]} 32... g5 {[%clk 0:02:05.6]} 33. Rb7 {[%clk
0:02:07]} 33... Ra2 {[%clk 0:02:01.6]} 34. Kf1 {[%clk 0:01:57.1]} 34... g4
{[%clk 0:01:41.7]} 35. Kg2 {[%clk 0:01:57.4]} 35... h5 {[%clk 0:01:40]} 36. Rb6
{[%clk 0:01:44.6]} 36... Rb2 {[%clk 0:01:39.2]} 37. Rf6 {[%clk 0:01:34.4]} 37...
Rxb4 {[%clk 0:01:20.4]} 38. Rxf5 {[%clk 0:01:35.4]} 38... Kg7 {[%clk 0:01:07.2]}
39. Rxh5 {[%clk 0:01:35.9]} 39... Kf7 {[%clk 0:01:07.7]} 40. h3 {[%clk
0:01:36.3]} 40... gxh3+ {[%clk 0:01:07.6]} 41. Kxh3 {[%clk 0:01:36.2]} 41... Ra4
{[%clk 0:01:09.5]} 42. f4 {[%clk 0:01:36.1]} 42... Ke7 {[%clk 0:01:10.2]} 43.
Rh7+ {[%clk 0:01:33]} 43... Kf8 {[%clk 0:01:03.2]} 44. Rh5 {[%clk 0:01:32.7]}
44... Ke7 {[%clk 0:01:03.2]} 45. Kg4 {[%clk 0:01:34.2]} 45... Ra3 {[%clk
0:01:03.7]} 46. Re5+ {[%clk 0:01:28]} 46... Kf6 {[%clk 0:01:03.3]} 47. Kh4
{[%clk 0:01:28]} 47... Ra4 {[%clk 0:01:00.3]} 48. Rc5 {[%clk 0:01:22]} 48... Ke7
{[%clk 0:00:53.4]} 49. Kg5 {[%clk 0:01:22.2]} 49... Rb4 {[%clk 0:00:53.1]} 50.
g4 {[%clk 0:01:12.3]} 50... Kd7 {[%clk 0:00:38.7]} 51. Kf5 {[%clk 0:01:06.5]}
51... Rb5 {[%clk 0:00:37.5]} 52. Re5 {[%clk 0:01:07.3]} 52... Kd6 {[%clk
0:00:38]} 53. g5 {[%clk 0:01:06.5]} 53... Rb1 {[%clk 0:00:37.6]} 54. Re6+ {[%clk
0:01:07]} 54... Kd7 {[%clk 0:00:36.6]} 55. Rxa6 {[%clk 0:01:06.9]} 55... Ke7
{[%clk 0:00:37.7]} 56. Ra7+ {[%clk 0:01:07.2]} 56... Kf8 {[%clk 0:00:38.5]} 57.
Kf6 {[%clk 0:01:07.8]} 57... Ke8 {[%clk 0:00:38.5]} 58. g6 {[%clk 0:01:08.6]}
58... Rg1 {[%clk 0:00:38.6]} 59. g7 {[%clk 0:01:09.7]} 59... Kd8 {[%clk
0:00:40.1]} 60. g8=Q+ {[%clk 0:01:09.4]} 60... Rxg8 {[%clk 0:00:40.4]} 61. Ra8+
{[%clk 0:01:11]} 61... Kc7 {[%clk 0:00:42.2]} 62. Rxg8 {[%clk 0:01:12.6]} 62...
Kb7 {[%clk 0:00:44.1]} 63. Ke6 {[%clk 0:01:13.1]} 63... Ka7 {[%clk 0:00:46]} 64.
f5 {[%clk 0:01:14.1]} 64... Kb7 {[%clk 0:00:47.9]} 65. f6 {[%clk 0:01:15.4]}
65... Ka6 {[%clk 0:00:49.8]} 66. f7 {[%clk 0:01:16.3]} 66... Kxa5 {[%clk
0:00:51.7]} 67. f8=Q {[%clk 0:01:17.4]} 67... Ka4 {[%clk 0:00:51.8]} 68. Qb8
{[%clk 0:01:17.8]} 68... Ka3 {[%clk 0:00:52.7]} 69. Rg7 {[%clk 0:01:18.2]} 69...
Ka2 {[%clk 0:00:54.6]} 70. Ra7# {[%clk 0:01:19.2]} 1-0

[Event "*** Titled Tuesday Blitz"]
[Site "Chess.com"]
[Date "2019.05.07"]
[Round "10"]
[White "gliglu"]
[Black "M1711"]
[Result "1-0"]
[WhiteElo "2577"]
[BlackElo "2462"]
[TimeControl "180+2"]
[EndTime "15:25:48 PDT"]
[Termination "gliglu won by resignation"]

1. d4 {[%clk 0:03:00.4]} 1... Nf6 {[%clk 0:02:59.6]} 2. c4 {[%clk 0:03:01.2]}
2... g6 {[%clk 0:02:59.7]} 3. Nf3 {[%clk 0:03:00.3]} 3... Bg7 {[%clk 0:02:56.8]}
4. g3 {[%clk 0:03:01.1]} 4... O-O {[%clk 0:02:56.9]} 5. Bg2 {[%clk 0:03:01.9]}
5... d6 {[%clk 0:02:54]} 6. O-O {[%clk 0:03:02.7]} 6... Nc6 {[%clk 0:02:54.1]}
7. Nc3 {[%clk 0:03:03.5]} 7... a6 {[%clk 0:02:53.8]} 8. Qc2 {[%clk 0:03:04.4]}
8... Bg4 {[%clk 0:02:35.9]} 9. Rd1 {[%clk 0:03:03.9]} 9... Rb8 {[%clk
0:02:23.8]} 10. h3 {[%clk 0:03:03.5]} 10... Bxf3 {[%clk 0:02:17.1]} 11. Bxf3
{[%clk 0:03:04.3]} 11... Nd7 {[%clk 0:02:17.4]} 12. e3 {[%clk 0:02:59.5]} 12...
e5 {[%clk 0:02:09.3]} 13. d5 {[%clk 0:02:59.5]} 13... Ne7 {[%clk 0:01:58.3]} 14.
e4 {[%clk 0:02:59.1]} 14... f5 {[%clk 0:01:55.4]} 15. exf5 {[%clk 0:02:59.6]}
15... gxf5 {[%clk 0:01:56.3]} 16. Bg2 {[%clk 0:03:00.3]} 16... b5 {[%clk
0:01:52.5]} 17. cxb5 {[%clk 0:02:59.2]} 17... axb5 {[%clk 0:01:54.4]} 18. Bg5
{[%clk 0:02:56.7]} 18... Nf6 {[%clk 0:01:45.6]} 19. Qd2 {[%clk 0:02:42.1]} 19...
b4 {[%clk 0:01:40.4]} 20. Ne2 {[%clk 0:02:40.9]} 20... Qe8 {[%clk 0:01:31.1]}
21. Rac1 {[%clk 0:02:39.7]} 21... Rb7 {[%clk 0:01:31.9]} 22. Rc4 {[%clk
0:02:35.9]} 22... Qg6 {[%clk 0:01:22.3]} 23. Rdc1 {[%clk 0:02:32.6]} 23... Rc8
{[%clk 0:01:07.7]} 24. Bxf6 {[%clk 0:02:21.2]} 24... Bxf6 {[%clk 0:01:07.7]} 25.
Rxb4 {[%clk 0:02:22.3]} 25... Bg5 {[%clk 0:00:43.6]} 26. f4 {[%clk 0:02:21.6]}
26... Rxb4 {[%clk 0:00:44.6]} 27. Qxb4 {[%clk 0:02:21.5]} 27... Bh6 {[%clk
0:00:42.2]} 28. Qb7 {[%clk 0:02:16.2]} 28... exf4 {[%clk 0:00:38.5]} 29. gxf4
{[%clk 0:02:16.2]} 29... Kh8 {[%clk 0:00:35.8]} 30. Rc3 {[%clk 0:01:35.2]} 30...
Qg7 {[%clk 0:00:10.6]} 31. Qb4 {[%clk 0:01:20.7]} 31... Qf7 {[%clk 0:00:04.5]}
32. Re3 {[%clk 0:01:10.9]} 32... Ng6 {[%clk 0:00:03.4]} 33. Qd4+ {[%clk
0:01:05]} 33... Bg7 {[%clk 0:00:04.3]} 34. Qd2 {[%clk 0:01:05.7]} 34... Rg8
{[%clk 0:00:03.8]} 35. Re6 {[%clk 0:01:04.6]} 35... Bh6 {[%clk 0:00:03.5]} 36.
Kh1 {[%clk 0:01:03]} 36... Bg7 {[%clk 0:00:02.9]} 37. a4 {[%clk 0:01:01.3]}
37... Nh4 {[%clk 0:00:04.1]} 38. Ng3 {[%clk 0:00:56.6]} 38... Nxg2 {[%clk
0:00:03.6]} 39. Qxg2 {[%clk 0:00:57.4]} 39... Bd4 {[%clk 0:00:03.9]} 40. Qd2
{[%clk 0:00:52.4]} 40... Qg7 {[%clk 0:00:04.3]} 41. Qd3 {[%clk 0:00:37.4]} 41...
h5 {[%clk 0:00:03.7]} 42. h4 {[%clk 0:00:35.2]} 42... Bc5 {[%clk 0:00:03]} 43.
Kg2 {[%clk 0:00:35.2]} 43... Qh7 {[%clk 0:00:02.4]} 44. Qe2 {[%clk 0:00:31.3]}
44... Rg7 {[%clk 0:00:02.4]} 45. Re8+ {[%clk 0:00:31]} 45... Rg8 {[%clk
0:00:03.8]} 46. Rxg8+ {[%clk 0:00:31.7]} 46... Kxg8 {[%clk 0:00:03.4]} 47. Qxh5
{[%clk 0:00:31.3]} 47... Qg7 {[%clk 0:00:04.2]} 48. Qg5 {[%clk 0:00:32.1]} 48...
Bd4 {[%clk 0:00:02.5]} 49. Nxf5 {[%clk 0:00:30.8]} 49... Qxg5+ {[%clk
0:00:03.2]} 50. hxg5 {[%clk 0:00:31.7]} 50... Bxb2 {[%clk 0:00:05.1]} 51. a5
{[%clk 0:00:31.8]} 51... Ba3 {[%clk 0:00:02.2]} 52. a6 {[%clk 0:00:32.5]} 52...
Bc5 {[%clk 0:00:03.7]} 53. Ne7+ {[%clk 0:00:32.3]} 53... Kf7 {[%clk 0:00:04.6]}
54. Nc6 {[%clk 0:00:33.2]} 1-0